[Event "Live Chess"]
[Site "Chess.com"]
[Date "2024.06.02"]
[Round "-"]
[White "CheckThis4"]
[Black "juniortay"]
[Result "1-0"]
[WhiteElo "2677"]
[BlackElo "2268"]
[TimeControl "300"]
[EndTime "8:09:31 PDT"]
[Termination "CheckThis4 won by checkmate"]

1. d4 {[%clk 0:04:57.9]} 1... Nf6 {[%clk 0:04:57.7]} 2. c4 {[%clk 0:04:57]} 2...
g6 {[%clk 0:04:56.1]} 3. Nc3 {[%clk 0:04:56.1]} 3... Bg7 {[%clk 0:04:56]} 4. e4
{[%clk 0:04:55.4]} 4... d6 {[%clk 0:04:55.6]} 5. Nge2 {[%clk 0:04:54.9]} 5...
O-O {[%clk 0:04:55.3]} 6. Ng3 {[%clk 0:04:54.4]} 6... a6 {[%clk 0:04:53.9]} 7.
Bd3 {[%clk 0:04:50.8]} 7... c5 {[%clk 0:04:52.5]} 8. d5 {[%clk 0:04:49.6]} 8...
b5 {[%clk 0:04:51.3]} 9. cxb5 {[%clk 0:04:45.1]} 9... axb5 {[%clk 0:04:50.3]}
10. Bxb5 {[%clk 0:04:44.3]} 10... Ba6 {[%clk 0:04:49.3]} 11. Bxa6 {[%clk
0:04:39.1]} 11... Rxa6 {[%clk 0:04:46.9]} 12. O-O {[%clk 0:04:38.6]} 12... Nbd7
{[%clk 0:04:44.9]} 13. f4 {[%clk 0:04:28.9]} 13... Qb6 {[%clk 0:04:40.2]} 14.
Qe2 {[%clk 0:04:25.1]} 14... Rfa8 {[%clk 0:04:35.5]} 15. e5 {[%clk 0:04:23.3]}
15... Ne8 {[%clk 0:04:15.7]} 16. e6 {[%clk 0:04:17.3]} 16... Ndf6 {[%clk
0:03:42.6]} 17. f5 {[%clk 0:04:15]} 17... Nc7 {[%clk 0:03:34.1]} 18. exf7+
{[%clk 0:04:08.9]} 18... Kxf7 {[%clk 0:03:32.1]} 19. fxg6+ {[%clk 0:04:08.2]}
19... hxg6 {[%clk 0:03:30.8]} 20. Nge4 {[%clk 0:03:59.4]} 20... Qb4 {[%clk
0:03:09.3]} 21. Ng5+ {[%clk 0:03:57.8]} 21... Kg8 {[%clk 0:03:07.1]} 22. Qxe7
{[%clk 0:03:49.8]} 22... Nce8 {[%clk 0:02:36.7]} 23. Qe6+ {[%clk 0:03:29]} 23...
Kh8 {[%clk 0:02:30.2]} 24. Rf4 {[%clk 0:03:27.2]} 24... c4 {[%clk 0:02:11.4]}
25. Rh4+ {[%clk 0:03:20.9]} 25... Nh5 {[%clk 0:02:07.6]} 26. Qxg6 {[%clk
0:03:11]} 26... Nf6 {[%clk 0:02:04.7]} 27. Rxh5+ {[%clk 0:03:07.9]} 27... Nxh5
{[%clk 0:02:03.1]} 28. Qh7# {[%clk 0:03:05.7]} 1-0

[Event "Live Chess"]
[Site "Chess.com"]
[Date "2024.06.02"]
[Round "-"]
[White "DJ_Lambton"]
[Black "goldinspiredphoenix"]
[Result "1-0"]
[WhiteElo "1793"]
[BlackElo "1482"]
[TimeControl "300"]
[EndTime "8:09:43 PDT"]
[Termination "DJ_Lambton won by checkmate"]

1. c4 {[%clk 0:04:59.1]} 1... e5 {[%clk 0:04:55.4]} 2. g3 {[%clk 0:04:58.3]}
2... Nf6 {[%clk 0:04:52.5]} 3. Bg2 {[%clk 0:04:56.9]} 3... Bc5 {[%clk
0:04:51.9]} 4. Nc3 {[%clk 0:04:55.7]} 4... Nc6 {[%clk 0:04:51.4]} 5. Nf3 {[%clk
0:04:54.7]} 5... d6 {[%clk 0:04:50.9]} 6. d3 {[%clk 0:04:54.2]} 6... Bg4 {[%clk
0:04:49.8]} 7. O-O {[%clk 0:04:53.6]} 7... O-O {[%clk 0:04:47.8]} 8. a3 {[%clk
0:04:53.2]} 8... Bb6 {[%clk 0:04:46.2]} 9. b4 {[%clk 0:04:52.1]} 9... a5 {[%clk
0:04:45.3]} 10. b5 {[%clk 0:04:50.2]} 10... Ne7 {[%clk 0:04:43.4]} 11. Bb2
{[%clk 0:04:49.4]} 11... Rb8 {[%clk 0:04:40.9]} 12. Qd2 {[%clk 0:04:48.9]} 12...
h6 {[%clk 0:04:38]} 13. a4 {[%clk 0:04:47.8]} 13... Bc5 {[%clk 0:04:32.4]} 14.
e3 {[%clk 0:04:45.7]} 14... b6 {[%clk 0:04:28.8]} 15. d4 {[%clk 0:04:44.8]}
15... exd4 {[%clk 0:04:26.2]} 16. exd4 {[%clk 0:04:44]} 16... Bb4 {[%clk
0:04:25.1]} 17. Qd3 {[%clk 0:04:42.7]} 17... Bf5 {[%clk 0:04:21.6]} 18. Qd2
{[%clk 0:04:35.1]} 18... Ne4 {[%clk 0:04:18.7]} 19. Qe3 {[%clk 0:04:33.7]} 19...
Nxc3 {[%clk 0:04:10.9]} 20. Bxc3 {[%clk 0:04:32.7]} 20... Bxc3 {[%clk 0:04:09]}
21. Qxc3 {[%clk 0:04:32.6]} 21... Ng6 {[%clk 0:04:05.7]} 22. Rae1 {[%clk
0:04:30.5]} 22... Qf6 {[%clk 0:03:56.4]} 23. Nh4 {[%clk 0:04:24.7]} 23... Nxh4
{[%clk 0:03:53.4]} 24. gxh4 {[%clk 0:04:23.7]} 24... Qxh4 {[%clk 0:03:51.4]} 25.
c5 {[%clk 0:04:22.9]} 25... dxc5 {[%clk 0:03:49.4]} 26. dxc5 {[%clk 0:04:22.4]}
26... Qxa4 {[%clk 0:03:45.7]} 27. cxb6 {[%clk 0:04:19.8]} 27... cxb6 {[%clk
0:03:41.8]} 28. Bc6 {[%clk 0:04:18.9]} 28... Qg4+ {[%clk 0:03:39.3]} 29. Qg3
{[%clk 0:04:17.9]} 29... Qxg3+ {[%clk 0:03:37.2]} 30. fxg3 {[%clk 0:04:17.8]}
30... Rfd8 {[%clk 0:03:23]} 31. Rxf5 {[%clk 0:04:16.7]} 31... f6 {[%clk
0:03:11.7]} 32. Rf3 {[%clk 0:04:14.3]} 32... Kf7 {[%clk 0:03:09.1]} 33. Rfe3
{[%clk 0:04:13.7]} 33... Kg8 {[%clk 0:03:00.3]} 34. Re7 {[%clk 0:04:11.3]} 34...
Kf8 {[%clk 0:02:56.2]} 35. Ra7 {[%clk 0:04:10.2]} 35... Rd2 {[%clk 0:02:39.5]}
36. Ree7 {[%clk 0:04:04.9]} 36... Rd1+ {[%clk 0:02:34.4]} 37. Kg2 {[%clk
0:04:03.9]} 37... Rd2+ {[%clk 0:02:33.3]} 38. Kh3 {[%clk 0:04:03.3]} 38... g5
{[%clk 0:02:21.2]} 39. Rh7 {[%clk 0:03:58.3]} 39... Kg8 {[%clk 0:02:16.2]} 40.
Rag7+ {[%clk 0:03:56.2]} 40... Kf8 {[%clk 0:02:15]} 41. Rc7 {[%clk 0:03:47.5]}
41... Kg8 {[%clk 0:02:12.4]} 42. Rxh6 {[%clk 0:03:46.7]} 42... Rd6 {[%clk
0:02:01.4]} 43. Rhh7 {[%clk 0:03:25.8]} 43... a4 {[%clk 0:01:52.9]} 44. Ra7
{[%clk 0:03:24.4]} 44... a3 {[%clk 0:01:40.9]} 45. Rhd7 {[%clk 0:03:22.3]} 45...
Rxd7 {[%clk 0:01:32.9]} 46. Bxd7 {[%clk 0:03:21.1]} 46... Rd8 {[%clk 0:01:30]}
47. Be6+ {[%clk 0:03:20.4]} 47... Kf8 {[%clk 0:01:28]} 48. Rxa3 {[%clk
0:03:19.8]} 48... Ke7 {[%clk 0:01:26.8]} 49. Re3 {[%clk 0:03:15.5]} 49... Kd6
{[%clk 0:01:21.7]} 50. Bg4 {[%clk 0:03:09.5]} 50... Kc5 {[%clk 0:01:18.2]} 51.
Be2 {[%clk 0:03:08.1]} 51... Rd2 {[%clk 0:01:13.4]} 52. Kg2 {[%clk 0:03:06.2]}
52... f5 {[%clk 0:01:11.5]} 53. Kf2 {[%clk 0:03:05.3]} 53... f4 {[%clk
0:01:09.6]} 54. Re5+ {[%clk 0:03:04.3]} 54... Kd4 {[%clk 0:01:08.2]} 55. Rxg5
{[%clk 0:03:03.5]} 55... fxg3+ {[%clk 0:01:07.1]} 56. hxg3 {[%clk 0:03:02.6]}
56... Ke4 {[%clk 0:01:02.4]} 57. Rg6 {[%clk 0:02:56.7]} 57... Kd5 {[%clk
0:00:57]} 58. Rxb6 {[%clk 0:02:55.4]} 58... Kc5 {[%clk 0:00:56.3]} 59. Rf6
{[%clk 0:02:53.9]} 59... Kd5 {[%clk 0:00:54]} 60. b6 {[%clk 0:02:51]} 60... Rb2
{[%clk 0:00:53.3]} 61. Ke3 {[%clk 0:02:45.4]} 61... Kc5 {[%clk 0:00:51.1]} 62.
g4 {[%clk 0:02:42.9]} 62... Rxb6 {[%clk 0:00:48.4]} 63. Rxb6 {[%clk 0:02:42.1]}
63... Kxb6 {[%clk 0:00:47.9]} 64. Kf4 {[%clk 0:02:41.6]} 64... Kc7 {[%clk
0:00:47.2]} 65. Kf5 {[%clk 0:02:40.9]} 65... Kd7 {[%clk 0:00:46.7]} 66. Kg6
{[%clk 0:02:40.4]} 66... Ke8 {[%clk 0:00:46.3]} 67. Kh7 {[%clk 0:02:39.7]} 67...
Kf8 {[%clk 0:00:45.2]} 68. g5 {[%clk 0:02:39.2]} 68... Kf7 {[%clk 0:00:44.4]}
69. g6+ {[%clk 0:02:38.4]} 69... Kf8 {[%clk 0:00:44]} 70. g7+ {[%clk 0:02:37.9]}
70... Ke7 {[%clk 0:00:42.9]} 71. g8=Q {[%clk 0:02:37.5]} 71... Kd7 {[%clk
0:00:41.9]} 72. Qg6 {[%clk 0:02:35.4]} 72... Ke7 {[%clk 0:00:40.6]} 73. Bg4
{[%clk 0:02:34.2]} 73... Kf8 {[%clk 0:00:39.2]} 74. Qg7+ {[%clk 0:02:28.4]}
74... Ke8 {[%clk 0:00:38.4]} 75. Kg6 {[%clk 0:02:26.7]} 75... Kd8 {[%clk
0:00:37.4]} 76. Qd7# {[%clk 0:02:25.7]} 1-0

[Event "Live Chess"]
[Site "Chess.com"]
[Date "2024.06.02"]
[Round "-"]
[White "grillage"]
[Black "dmitro74"]
[Result "1-0"]
[WhiteElo "1870"]
[BlackElo "1739"]
[TimeControl "300"]
[EndTime "8:10:11 PDT"]
[Termination "grillage won on time"]

1. d4 {[%clk 0:04:52.4]} 1... d5 {[%clk 0:04:58.6]} 2. Nf3 {[%clk 0:04:51.7]}
2... Nf6 {[%clk 0:04:57.3]} 3. c4 {[%clk 0:04:51.2]} 3... dxc4 {[%clk
0:04:55.4]} 4. e3 {[%clk 0:04:49.6]} 4... Bg4 {[%clk 0:04:50]} 5. Bxc4 {[%clk
0:04:44.7]} 5... e6 {[%clk 0:04:48.9]} 6. O-O {[%clk 0:04:39.3]} 6... Be7 {[%clk
0:04:44.1]} 7. Nc3 {[%clk 0:04:37.5]} 7... O-O {[%clk 0:04:42.5]} 8. b3 {[%clk
0:04:24.6]} 8... a6 {[%clk 0:04:41]} 9. Bb2 {[%clk 0:04:21.7]} 9... b5 {[%clk
0:04:39.2]} 10. Be2 {[%clk 0:04:20.6]} 10... c5 {[%clk 0:04:37.5]} 11. dxc5
{[%clk 0:04:12.9]} 11... Bxc5 {[%clk 0:04:36]} 12. Qc2 {[%clk 0:04:08.5]} 12...
Qb6 {[%clk 0:04:30]} 13. Rac1 {[%clk 0:03:45.2]} 13... Nbd7 {[%clk 0:04:26.3]}
14. Rfd1 {[%clk 0:03:35.2]} 14... Rac8 {[%clk 0:04:20.6]} 15. Qb1 {[%clk
0:03:28.2]} 15... b4 {[%clk 0:03:52.3]} 16. Ne4 {[%clk 0:03:22.1]} 16... Bf5
{[%clk 0:03:48.1]} 17. Nxf6+ {[%clk 0:03:18.3]} 17... Nxf6 {[%clk 0:03:46.2]}
18. Bd3 {[%clk 0:03:17.8]} 18... Bxd3 {[%clk 0:03:20.3]} 19. Rxd3 {[%clk
0:03:09.4]} 19... Nd5 {[%clk 0:03:09.7]} 20. Rcd1 {[%clk 0:03:04.1]} 20... a5
{[%clk 0:02:53.7]} 21. Ne5 {[%clk 0:03:01.5]} 21... Rfd8 {[%clk 0:02:45.9]} 22.
Nc4 {[%clk 0:02:59.3]} 22... Qa7 {[%clk 0:02:40.4]} 23. Ba1 {[%clk 0:02:52.8]}
23... Re8 {[%clk 0:02:25]} 24. Qb2 {[%clk 0:02:47]} 24... f6 {[%clk 0:02:13.9]}
25. Qe2 {[%clk 0:02:40.6]} 25... a4 {[%clk 0:02:06.2]} 26. Qg4 {[%clk
0:02:33.3]} 26... f5 {[%clk 0:01:37.7]} 27. Qg3 {[%clk 0:02:30.1]} 27... g6
{[%clk 0:01:18.5]} 28. h4 {[%clk 0:02:27.9]} 28... axb3 {[%clk 0:01:10.3]} 29.
axb3 {[%clk 0:02:25.1]} 29... Bf8 {[%clk 0:00:53]} 30. Nd6 {[%clk 0:02:19.8]}
30... Bxd6 {[%clk 0:00:40.7]} 31. Qxd6 {[%clk 0:02:18.6]} 31... Qe7 {[%clk
0:00:38.4]} 32. Qe5 {[%clk 0:02:17.2]} 32... Nc3 {[%clk 0:00:24.3]} 33. Bxc3
{[%clk 0:02:11.8]} 33... bxc3 {[%clk 0:00:18]} 34. Rxc3 {[%clk 0:02:10.1]} 34...
Rxc3 {[%clk 0:00:15.2]} 35. Qxc3 {[%clk 0:02:09]} 35... e5 {[%clk 0:00:13]} 36.
Qc4+ {[%clk 0:02:05.5]} 36... Kg7 {[%clk 0:00:10.5]} 37. Qb5 {[%clk 0:01:59.4]}
37... Kh6 {[%clk 0:00:07.2]} 38. b4 {[%clk 0:01:53.6]} 1-0

[Event "Live Chess"]
[Site "Chess.com"]
[Date "2024.06.02"]
[Round "-"]
[White "FREDERICKtheMATE"]
[Black "missedJariChance"]
[Result "1-0"]
[WhiteElo "2661"]
[BlackElo "1364"]
[TimeControl "300"]
[EndTime "8:10:43 PDT"]
[Termination "FREDERICKtheMATE won by resignation"]

1. e4 {[%clk 0:04:56.2]} 1... c5 {[%clk 0:04:58]} 2. Nf3 {[%clk 0:04:55.2]} 2...
e6 {[%clk 0:04:56.7]} 3. c3 {[%clk 0:04:53.2]} 3... Nc6 {[%clk 0:04:51.4]} 4. d4
{[%clk 0:04:51.7]} 4... cxd4 {[%clk 0:04:49]} 5. cxd4 {[%clk 0:04:51.6]} 5... d5
{[%clk 0:04:45.7]} 6. e5 {[%clk 0:04:51]} 6... Qb6 {[%clk 0:04:43]} 7. Nc3
{[%clk 0:04:47.6]} 7... Bd7 {[%clk 0:04:40.4]} 8. a3 {[%clk 0:04:45.1]} 8...
Nge7 {[%clk 0:04:32.9]} 9. Na4 {[%clk 0:04:41.5]} 9... Qc7 {[%clk 0:04:30.7]}
10. Bd3 {[%clk 0:04:36.9]} 10... b6 {[%clk 0:04:17.9]} 11. O-O {[%clk
0:04:34.6]} 11... Ng6 {[%clk 0:04:15.9]} 12. h4 {[%clk 0:04:31.4]} 12... Be7
{[%clk 0:04:11.4]} 13. g3 {[%clk 0:04:28.2]} 13... h5 {[%clk 0:03:49.2]} 14.
Bxg6 {[%clk 0:04:24.7]} 14... fxg6 {[%clk 0:03:45.9]} 15. Bg5 {[%clk 0:04:23.8]}
15... O-O-O {[%clk 0:03:39.2]} 16. Rc1 {[%clk 0:04:19.6]} 16... Rde8 {[%clk
0:03:31.6]} 17. b4 {[%clk 0:04:10.9]} 17... Kb8 {[%clk 0:03:29.5]} 18. Bxe7
{[%clk 0:04:06.3]} 18... Rxe7 {[%clk 0:03:26.7]} 19. b5 {[%clk 0:04:03.4]} 1-0

[Event "Live Chess"]
[Site "Chess.com"]
[Date "2024.06.02"]
[Round "-"]
[White "best137"]
[Black "ClassyChameleon"]
[Result "1-0"]
[WhiteElo "1523"]
[BlackElo "1515"]
[TimeControl "300"]
[EndTime "8:10:46 PDT"]
[Termination "best137 won by checkmate"]

1. c4 {[%clk 0:04:57.8]} 1... e5 {[%clk 0:04:59.4]} 2. Nc3 {[%clk 0:04:57.1]}
2... Nc6 {[%clk 0:04:59]} 3. Nf3 {[%clk 0:04:56.7]} 3... Bc5 {[%clk 0:04:58.4]}
4. e3 {[%clk 0:04:54.1]} 4... Nf6 {[%clk 0:04:58]} 5. d4 {[%clk 0:04:53.6]} 5...
exd4 {[%clk 0:04:56.9]} 6. exd4 {[%clk 0:04:53.5]} 6... Bb4 {[%clk 0:04:53.4]}
7. Bg5 {[%clk 0:04:51.6]} 7... h6 {[%clk 0:04:51.6]} 8. Bh4 {[%clk 0:04:49]}
8... O-O {[%clk 0:04:50]} 9. Bd3 {[%clk 0:04:45.4]} 9... Re8+ {[%clk 0:04:47.3]}
10. Be2 {[%clk 0:04:38.2]} 10... Bxc3+ {[%clk 0:04:25.4]} 11. bxc3 {[%clk
0:04:35.6]} 11... Na5 {[%clk 0:04:23.4]} 12. O-O {[%clk 0:04:30.7]} 12... d5
{[%clk 0:04:22]} 13. cxd5 {[%clk 0:04:12.4]} 13... Qxd5 {[%clk 0:04:15.4]} 14.
Bxf6 {[%clk 0:04:10.6]} 14... gxf6 {[%clk 0:04:14.1]} 15. Nd2 {[%clk 0:03:52.8]}
15... Bf5 {[%clk 0:03:45.7]} 16. Bf3 {[%clk 0:03:20.1]} 16... Qd6 {[%clk
0:03:31.1]} 17. Qa4 {[%clk 0:03:06.7]} 17... Nc6 {[%clk 0:03:23.8]} 18. Rfe1
{[%clk 0:02:55]} 18... Bg6 {[%clk 0:03:13]} 19. Rxe8+ {[%clk 0:02:51.1]} 19...
Rxe8 {[%clk 0:03:12.9]} 20. d5 {[%clk 0:02:49.9]} 20... Rd8 {[%clk 0:02:53.3]}
21. Nc4 {[%clk 0:02:37.5]} 21... Qf4 {[%clk 0:02:25.9]} 22. dxc6 {[%clk
0:02:31.8]} 22... bxc6 {[%clk 0:02:24.4]} 23. Qxc6 {[%clk 0:02:22.4]} 23... Rd3
{[%clk 0:01:52.6]} 24. Qe8+ {[%clk 0:02:07.4]} 24... Kg7 {[%clk 0:01:50.8]} 25.
Ne3 {[%clk 0:02:02.9]} 25... Rxc3 {[%clk 0:01:34.3]} 26. Rd1 {[%clk 0:02:01.2]}
26... Bc2 {[%clk 0:01:22.4]} 27. Rd8 {[%clk 0:01:56.8]} 27... Rxe3 {[%clk
0:01:08]} 28. Qg8# {[%clk 0:01:50.3]} 1-0

[Event "Live Chess"]
[Site "Chess.com"]
[Date "2024.06.02"]
[Round "-"]
[White "FlyingChessKestrel13"]
[Black "gobbles19"]
[Result "1/2-1/2"]
[WhiteElo "2064"]
[BlackElo "2220"]
[TimeControl "300"]
[EndTime "8:11:03 PDT"]
[Termination "Game drawn by repetition"]

1. e4 {[%clk 0:04:58.3]} 1... c5 {[%clk 0:04:58.1]} 2. Nf3 {[%clk 0:04:57.7]}
2... e6 {[%clk 0:04:57.2]} 3. c4 {[%clk 0:04:56.6]} 3... d5 {[%clk 0:04:51.2]}
4. cxd5 {[%clk 0:04:55.3]} 4... exd5 {[%clk 0:04:51.1]} 5. e5 {[%clk 0:04:53.3]}
5... Nc6 {[%clk 0:04:50.3]} 6. d3 {[%clk 0:04:51.5]} 6... Nge7 {[%clk
0:04:48.1]} 7. Nc3 {[%clk 0:04:50.3]} 7... Ng6 {[%clk 0:04:46.9]} 8. Bg5 {[%clk
0:04:48.5]} 8... Be7 {[%clk 0:04:45.1]} 9. Bxe7 {[%clk 0:04:42.8]} 9... Ngxe7
{[%clk 0:04:43.2]} 10. Be2 {[%clk 0:04:41.3]} 10... Bg4 {[%clk 0:04:39.7]} 11.
O-O {[%clk 0:04:35]} 11... O-O {[%clk 0:04:38.9]} 12. Re1 {[%clk 0:04:32.9]}
12... Ng6 {[%clk 0:04:33.9]} 13. h3 {[%clk 0:04:30]} 13... Be6 {[%clk
0:04:31.5]} 14. d4 {[%clk 0:04:27.1]} 14... cxd4 {[%clk 0:04:29.2]} 15. Nxd4
{[%clk 0:04:26.1]} 15... Ngxe5 {[%clk 0:04:25.1]} 16. Bf3 {[%clk 0:04:18.9]}
16... Nxf3+ {[%clk 0:04:13.9]} 17. Nxf3 {[%clk 0:04:17.5]} 17... h6 {[%clk
0:04:04.8]} 18. Qd2 {[%clk 0:03:59.8]} 18... Qd7 {[%clk 0:03:55.9]} 19. Rad1
{[%clk 0:03:56.3]} 19... Rad8 {[%clk 0:03:54.7]} 20. Nd4 {[%clk 0:03:53.5]}
20... Nxd4 {[%clk 0:03:52.6]} 21. Qxd4 {[%clk 0:03:51.3]} 21... b6 {[%clk
0:03:47.2]} 22. Rd2 {[%clk 0:03:50]} 22... Qc6 {[%clk 0:03:41.9]} 23. Red1
{[%clk 0:03:48.2]} 23... Rfe8 {[%clk 0:03:38.7]} 24. Rd3 {[%clk 0:03:38.3]}
24... a6 {[%clk 0:03:25.9]} 25. Rg3 {[%clk 0:03:36.5]} 25... g6 {[%clk
0:03:20.9]} 26. Qf4 {[%clk 0:03:27.9]} 26... Kh7 {[%clk 0:03:16.5]} 27. Ne2
{[%clk 0:03:22.8]} 27... Qc4 {[%clk 0:03:10.8]} 28. Nd4 {[%clk 0:03:17.4]} 28...
Qc2 {[%clk 0:03:02.5]} 29. Rd2 {[%clk 0:03:13.6]} 29... Qe4 {[%clk 0:02:58.2]}
30. Nxe6 {[%clk 0:02:52.8]} 30... Qe1+ {[%clk 0:02:57.3]} 31. Kh2 {[%clk
0:02:51.2]} 31... Qxe6 {[%clk 0:02:57]} 32. Re3 {[%clk 0:02:49]} 32... Qd7
{[%clk 0:02:46.2]} 33. Red3 {[%clk 0:02:45.6]} 33... Qe6 {[%clk 0:02:30.6]} 34.
Qf3 {[%clk 0:02:38.3]} 34... Qe5+ {[%clk 0:02:17]} 35. g3 {[%clk 0:02:35.8]}
35... Kg7 {[%clk 0:02:12.1]} 36. Rxd5 {[%clk 0:02:23.9]} 36... Rxd5 {[%clk
0:02:12]} 37. Rxd5 {[%clk 0:02:22.8]} 37... Qxb2 {[%clk 0:02:10.4]} 38. Rd7
{[%clk 0:02:16.7]} 38... Qf6 {[%clk 0:02:08.6]} 39. Qxf6+ {[%clk 0:02:12.9]}
39... Kxf6 {[%clk 0:02:08.5]} 40. Kg2 {[%clk 0:02:11.9]} 40... Re6 {[%clk
0:02:04.8]} 41. f4 {[%clk 0:02:09.5]} 41... Rc6 {[%clk 0:02:03.8]} 42. Kf3
{[%clk 0:02:07.6]} 42... h5 {[%clk 0:02:02.6]} 43. g4 {[%clk 0:02:06.5]} 43...
hxg4+ {[%clk 0:01:59]} 44. hxg4 {[%clk 0:02:05.4]} 44... Ke6 {[%clk 0:01:55.4]}
45. Rd3 {[%clk 0:02:03.4]} 45... Rc2 {[%clk 0:01:47.8]} 46. Rb3 {[%clk
0:02:00.2]} 46... b5 {[%clk 0:01:45.6]} 47. a4 {[%clk 0:01:57]} 47... Rc5 {[%clk
0:01:43.9]} 48. axb5 {[%clk 0:01:56]} 48... Rxb5 {[%clk 0:01:41]} 49. Ra3 {[%clk
0:01:54.7]} 49... a5 {[%clk 0:01:39.3]} 50. Ke4 {[%clk 0:01:53.5]} 50... Kd6
{[%clk 0:01:36.9]} 51. f5 {[%clk 0:01:52.4]} 51... gxf5+ {[%clk 0:01:33]} 52.
gxf5 {[%clk 0:01:51.6]} 52... Kc6 {[%clk 0:01:32.5]} 53. Kf4 {[%clk 0:01:49.3]}
53... Kb6 {[%clk 0:01:30.5]} 54. Kg5 {[%clk 0:01:47.8]} 54... Rc5 {[%clk
0:01:22.5]} 55. Kf6 {[%clk 0:01:46.7]} 55... Rc7 {[%clk 0:01:21.6]} 56. Re3
{[%clk 0:01:43.5]} 56... a4 {[%clk 0:01:17.1]} 57. Rd3 {[%clk 0:01:31.9]} 57...
Kb5 {[%clk 0:01:14.2]} 58. Rg3 {[%clk 0:01:30.1]} 58... Ka5 {[%clk 0:01:11.5]}
59. Rf3 {[%clk 0:01:27.6]} 59... Rb7 {[%clk 0:01:10.5]} 60. Rg3 {[%clk
0:01:26.2]} 60... Rb3 {[%clk 0:01:07.8]} 61. Rg2 {[%clk 0:01:24.4]} 61... Rb7
{[%clk 0:01:01]} 62. Rg3 {[%clk 0:01:21.3]} 62... Kb4 {[%clk 0:00:59.5]} 63.
Rg4+ {[%clk 0:01:20.6]} 63... Ka5 {[%clk 0:00:57.8]} 64. Rg3 {[%clk 0:01:19.7]}
1/2-1/2

[Event "Live Chess"]
[Site "Chess.com"]
[Date "2024.06.02"]
[Round "-"]
[White "HoarseyHorsey"]
[Black "DfNn"]
[Result "1-0"]
[WhiteElo "1614"]
[BlackElo "1557"]
[TimeControl "300"]
[EndTime "8:11:08 PDT"]
[Termination "HoarseyHorsey won by resignation"]

1. d4 {[%clk 0:04:58]} 1... e5 {[%clk 0:04:57]} 2. dxe5 {[%clk 0:04:56.9]} 2...
Nc6 {[%clk 0:04:55.9]} 3. Nf3 {[%clk 0:04:56.3]} 3... Bc5 {[%clk 0:04:54.4]} 4.
Bf4 {[%clk 0:04:54.6]} 4... b6 {[%clk 0:04:51.2]} 5. Nc3 {[%clk 0:04:53.1]} 5...
Bb7 {[%clk 0:04:50.3]} 6. e4 {[%clk 0:04:49.2]} 6... Nge7 {[%clk 0:04:47.2]} 7.
Bg5 {[%clk 0:04:45.3]} 7... h6 {[%clk 0:04:45.1]} 8. Bh4 {[%clk 0:04:44]} 8...
g5 {[%clk 0:04:44]} 9. Bg3 {[%clk 0:04:43.3]} 9... Nd4 {[%clk 0:04:41.8]} 10.
Nxd4 {[%clk 0:04:36.8]} 10... Bxd4 {[%clk 0:04:40.5]} 11. Qxd4 {[%clk
0:04:35.9]} 11... c5 {[%clk 0:04:38.1]} 12. Qd2 {[%clk 0:04:31.4]} 12... Ng6
{[%clk 0:04:32.3]} 13. Bb5 {[%clk 0:04:28.6]} 13... Qe7 {[%clk 0:04:28.5]} 14.
O-O-O {[%clk 0:04:27.2]} 14... Nxe5 {[%clk 0:04:26.8]} 15. Bxe5 {[%clk
0:04:20.7]} 15... Qxe5 {[%clk 0:04:26.7]} 16. Qxd7+ {[%clk 0:04:18.3]} 16... Kf8
{[%clk 0:04:24.5]} 17. Qxb7 {[%clk 0:04:15.3]} 1-0

[Event "Live Chess"]
[Site "Chess.com"]
[Date "2024.06.02"]
[Round "-"]
[White "DarranAS"]
[Black "bill77678"]
[Result "0-1"]
[WhiteElo "1415"]
[BlackElo "1845"]
[TimeControl "300"]
[EndTime "8:11:34 PDT"]
[Termination "bill77678 won by resignation"]

1. f4 {[%clk 0:04:56.1]} 1... d5 {[%clk 0:04:57.8]} 2. Nf3 {[%clk 0:04:54.1]}
2... c5 {[%clk 0:04:56.8]} 3. e3 {[%clk 0:04:49.4]} 3... Nc6 {[%clk 0:04:56]} 4.
Be2 {[%clk 0:04:41.7]} 4... g6 {[%clk 0:04:55.1]} 5. O-O {[%clk 0:04:38.5]} 5...
Bg7 {[%clk 0:04:54.5]} 6. c3 {[%clk 0:04:36.7]} 6... Nf6 {[%clk 0:04:53.3]} 7.
d3 {[%clk 0:04:29.7]} 7... O-O {[%clk 0:04:51.9]} 8. Kh1 {[%clk 0:04:16.8]} 8...
Re8 {[%clk 0:04:50.6]} 9. Rg1 {[%clk 0:04:10.7]} 9... e5 {[%clk 0:04:49]} 10.
fxe5 {[%clk 0:04:02]} 10... Nxe5 {[%clk 0:04:48.9]} 11. Nxe5 {[%clk 0:03:58.4]}
11... Rxe5 {[%clk 0:04:48.8]} 12. d4 {[%clk 0:03:49]} 12... Re8 {[%clk
0:04:43.6]} 13. Bf3 {[%clk 0:03:22.7]} 13... cxd4 {[%clk 0:04:36.4]} 14. exd4
{[%clk 0:03:16]} 14... Ne4 {[%clk 0:04:30.6]} 15. Qf1 {[%clk 0:02:59.2]} 15...
Qh4 {[%clk 0:04:21.6]} 16. Bxe4 {[%clk 0:02:53.7]} 16... Qxe4 {[%clk 0:04:19.5]}
17. Nd2 {[%clk 0:02:51.7]} 17... Qe2 {[%clk 0:04:15.7]} 18. Nf3 {[%clk 0:02:42]}
18... Bf5 {[%clk 0:04:11]} 19. Bg5 {[%clk 0:02:23.8]} 19... Qxf1 {[%clk
0:04:04.4]} 20. Rgxf1 {[%clk 0:02:20]} 20... Re2 {[%clk 0:04:03.6]} 21. b3
{[%clk 0:02:11.2]} 21... Rae8 {[%clk 0:04:00.3]} 22. Bf4 {[%clk 0:01:48.7]}
22... h6 {[%clk 0:03:41.8]} 23. Ne5 {[%clk 0:01:34.2]} 23... Be4 {[%clk
0:03:23.2]} 24. Rg1 {[%clk 0:01:13.9]} 24... g5 {[%clk 0:03:17.4]} 25. Bg3
{[%clk 0:01:12.2]} 25... f5 {[%clk 0:03:10.5]} 26. Nf3 {[%clk 0:00:44.1]} 26...
f4 {[%clk 0:03:02.9]} 27. Be1 {[%clk 0:00:43]} 27... Bxf3 {[%clk 0:02:37.1]} 28.
gxf3 {[%clk 0:00:42.9]} 28... Kf7 {[%clk 0:02:34]} 29. h4 {[%clk 0:00:33.9]}
29... Kg6 {[%clk 0:02:24.1]} 30. hxg5 {[%clk 0:00:29.2]} 30... hxg5 {[%clk
0:02:22.3]} 31. Rg4 {[%clk 0:00:22.4]} 31... Rxe1+ {[%clk 0:02:19.3]} 32. Rxe1
{[%clk 0:00:17.8]} 32... Rxe1+ {[%clk 0:02:19.2]} 33. Kg2 {[%clk 0:00:17]} 33...
Re2+ {[%clk 0:02:16.8]} 34. Kf1 {[%clk 0:00:15.2]} 34... Rxa2 {[%clk 0:02:14.5]}
0-1

[Event "Live Chess"]
[Site "Chess.com"]
[Date "2024.06.02"]
[Round "-"]
[White "Purple1szed"]
[Black "DavrosLight"]
[Result "1-0"]
[WhiteElo "2001"]
[BlackElo "802"]
[TimeControl "300"]
[EndTime "8:11:47 PDT"]
[Termination "Purple1szed won by resignation"]

1. e4 {[%clk 0:04:50.1]} 1... e5 {[%clk 0:04:59.1]} 2. Nf3 {[%clk 0:04:49.2]}
2... Nc6 {[%clk 0:04:57.5]} 3. Bc4 {[%clk 0:04:48.3]} 3... Nf6 {[%clk
0:04:53.9]} 4. Ng5 {[%clk 0:04:47.6]} 4... Nxe4 {[%clk 0:04:52.9]} 5. Bxf7+
{[%clk 0:04:44.5]} 5... Ke7 {[%clk 0:04:43.1]} 6. d4 {[%clk 0:04:44.4]} 6...
Nxg5 {[%clk 0:04:18.4]} 7. Bxg5+ {[%clk 0:04:44.3]} 7... Kxf7 {[%clk 0:04:15.2]}
8. Bxd8 {[%clk 0:04:44.2]} 8... Nxd4 {[%clk 0:04:12.3]} 9. O-O {[%clk
0:04:41.7]} 9... Nxc2 {[%clk 0:03:39.5]} 10. Qxc2 {[%clk 0:04:19.7]} 10... Bc5
{[%clk 0:03:31.5]} 11. Bxc7 {[%clk 0:04:09.2]} 11... Bxf2+ {[%clk 0:03:26.7]}
1-0